fUST/lending_fUST_20260102
["ID","MTS","AMOUNT","RATE_DAILY","PERIOD"]
[400293344,1767293438483,-600.0,0.00014246,2]
[400293345,1767293438492,-334.46152454,0.00014338,2]
[400293346,1767293438503,-1345.53847546,0.00014338,2]
[400293347,1767293438512,-173.776,0.00015017,2]
[400293348,1767293438522,-1364.0,0.00015017,2]
[400293349,1767293438531,-2157.0,0.00015017,2]
[400293350,1767293438540,-201.993,0.00015017,2]
[400293351,1767293438549,-720.0,0.00015671,2]
[400293352,1767293438558,-2351.0,0.00015772,2]
[400293353,1767293438568,-314.78104613,0.00016059,2]
[400293354,1767293438576,-174.888,0.00016236,2]
[400293355,1767293438586,-500.0,0.00016438,2]
[400293356,1767293438595,-956.81583699,0.00017212,5]
[400293357,1767293438605,-864.0,0.00017238,2]
[400293358,1767293438614,-3292.0,0.00017349,2]
[400293359,1767293438623,-160.0,0.00017617,2]
[400293360,1767293438632,-200.94849439,0.00017619,2]
[400293361,1767293438652,-706.64386769,0.00017619,2]
[400293401,1767293440299,-134.07430459,0.00017619,2]
[400293403,1767293440308,-272.01056982,0.00017799,2]
[400293405,1767293440317,-45.79512559,0.00017799,2]
[400293407,1767293440329,-426.13638038,0.00017799,2]
[400293441,1767293444498,-416.0,0.00015017,2]
[400293442,1767293444508,-361.17506577,0.00017799,2]
[400293443,1767293445281,-709.15418094,0.00017799,2]
[400293444,1767293445292,-198.91972965,0.00018003,7]
[400293445,1767293445302,-806.665,0.00018017,2]
[400293446,1767293445311,-179.45859216,0.00018017,2]
[400293447,1767293445322,-971.15581075,0.00018017,2]
[400293448,1767293445333,-1006.38559709,0.00018017,2]
[400293449,1767293445344,-416.0,0.00018017,2]
[400293450,1767293445353,-351.57363594,0.00018059,2]
[400293451,1767293445362,-902.27697305,0.00018078,7]
[400293452,1767293445375,-500.0,0.00018599,2]
[400293453,1767293445384,-447.97665487,0.00018599,2]
[400293454,1767293445394,-500.0,0.00018599,2]
[400293455,1767293445403,-500.0,0.00018599,2]
[400293456,1767293445414,-320.42893239,0.00018599,2]
[400293457,1767293445423,-5260.76312274,0.000186,3]
[400293460,1767293446384,-2833.72109279,0.000186,3]
[400293461,1767293446395,-16968.69153787,0.000186,3]
[400293462,1767293446406,-173.32,0.00018688,3]
[400293463,1767293446415,-259.99,0.00018688,3]
[400293464,1767293446424,-779.99,0.00018688,3]
[400293465,1767293446434,-500.0,0.00018695,2]
[400293466,1767293446443,-500.0,0.00018695,2]
[400293467,1767293446452,-500.0,0.00018695,2]
[400293468,1767293446461,-500.0,0.00018695,2]
[400293469,1767293446471,-500.0,0.00018695,2]
[400293470,1767293446479,-500.0,0.00018695,2]
[400293471,1767293446489,-500.0,0.00018695,2]
[400293472,1767293446498,-500.0,0.00018695,2]
[400293473,1767293446508,-500.0,0.00018695,2]
[400293474,1767293446516,-432.79400792,0.00018695,2]
[400293476,1767293446526,-500.0,0.00018695,2]
[400293477,1767293446534,-500.0,0.00018695,2]
[400293478,1767293446543,-500.0,0.00018695,2]
[400293479,1767293446553,-500.0,0.00018695,2]
[400293480,1767293446562,-500.0,0.00018695,2]
[400293481,1767293446571,-200.0,0.00018695,2]
[400293482,1767293446579,-52826.29408449,0.00018698,3]
[400293484,1767293650652,599.0,9.76e-05,2]
[400293488,1767294439130,-363.69212387,0.0001,2]
[400293517,1767294632083,-560.0,0.0001,2]
[400293519,1767294632093,-166.2,0.0001,2]
[400293521,1767294632102,-184.22443108,0.00010296,2]
[400293523,1767294632111,-217.38482867,0.00012296,2]
[400293525,1767294632120,-103.58631555,0.000127,2]
[400293527,1767294632138,-62.61368445,0.000127,2]
[400293529,1767294632147,-250.54522626,0.00014296,2]
[400293531,1767294632156,-2157.0,0.00015017,2]
[400293533,1767294632170,-166.2,0.000154,2]
[400293535,1767294632180,-181.824521,0.0001623,2]
[400293537,1767294632189,-283.70562386,0.00016296,2]
[400293539,1767294632198,-1200.0,0.00016552,2]
[400293541,1767294632207,-2523.37652225,0.00016553,2]
[400293543,1767294632216,-153.0,0.00016553,2]
[400293545,1767294632226,-300.0,0.00016554,2]
[400293547,1767294632236,-300.0,0.00016554,2]
[400293549,1767294632245,-300.0,0.00016554,2]
[400293551,1767294632255,-300.0,0.00016554,2]
[400293553,1767294632264,-300.0,0.00016554,2]
[400293555,1767294632273,-300.0,0.00016554,2]
[400293557,1767294632283,-300.0,0.00016554,2]
[400293559,1767294632292,-300.0,0.00016554,2]
[400293561,1767294632302,-300.0,0.00016554,2]
[400293563,1767294632311,-300.0,0.00016554,2]
[400293565,1767294632321,-300.0,0.00016554,2]
[400293567,1767294632330,-300.0,0.00016554,2]
[400293569,1767294632340,-300.0,0.00016554,2]
[400293571,1767294632350,-300.0,0.00016554,2]
[400293573,1767294632359,-300.0,0.00016554,2]
[400293575,1767294632369,-600.0,0.00016884,2]
[400293577,1767294632378,-151.0,0.00017328,2]
[400293579,1767294632389,-151.0,0.00017328,2]
[400293581,1767294632398,-250.0,0.00017328,2]
[400293583,1767294632408,-151.0,0.00017328,2]
[400293585,1767294632417,-250.0,0.00017328,2]
[400293587,1767294632427,-151.0,0.00017328,2]
[400293589,1767294632436,-250.0,0.00017328,2]
[400293591,1767294632445,-151.0,0.00017328,2]
[400293593,1767294632455,-250.0,0.00017328,2]
[400293595,1767294632464,-151.0,0.00017328,2]
[400293597,1767294632473,-285.16608236,0.00017328,2]
[400293599,1767294632482,-151.0,0.00017328,2]
[400293601,1767294632492,-151.0,0.00017328,2]
[400293603,1767294632501,-151.0,0.00017328,2]
[400293605,1767294632510,-151.0,0.00017328,2]
[400293607,1767294632521,-151.0,0.00017328,2]
[400293609,1767294632535,-259.26186805,0.00017328,2]
[400293611,1767294632544,-151.0,0.00017328,2]
[400293612,1767294632553,-1041.66666667,0.00017467,2]
[400293614,1767294632563,-168.0,0.00017553,2]
[400293616,1767294632572,-168.0,0.00017688,2]
[400293618,1767294632581,-216.07198464,0.0001792,2]
[400293620,1767294632591,-166.2,0.00018,2]
[400293622,1767294632600,-2157.0,0.00018017,2]
[400293624,1767294632609,-1680.0,0.00018177,2]
[400293626,1767294632618,-168.0,0.0001829,2]
[400293628,1767294632628,-316.86602145,0.00018296,2]
[400293630,1767294632637,-168.0,0.00018393,2]
[400293632,1767294632646,-250.0,0.00018423,2]
[400293634,1767294632655,-168.0,0.00018427,2]
[400293636,1767294632665,-504.67406641,0.00018465,2]
[400293638,1767294632674,-179.0429656,0.00018466,2]
[400293639,1767294632683,-2021.32553265,0.00018497,2]
[400293640,1767294632693,-179.6545294,0.00018517,2]
[400293641,1767294632703,-720.0,0.00018572,2]
[400293642,1767294632711,-500.0,0.00018596,2]
[400293643,1767294632721,-4021.24553738,0.00018597,2]
[400293644,1767294632859,-366.24267796,0.00018697,2]
[400293645,1767294632869,-176.48615172,0.00018697,2]
[400293646,1767294632878,-242.01622903,0.00018697,2]
[400293647,1767294632888,-500.0,0.00018697,2]
[400293648,1767294632897,-500.0,0.00018697,2]
[400293649,1767294632907,-500.0,0.00018697,2]
[400293650,1767294632916,-427.46739978,0.00018697,2]
[400293651,1767294632925,-500.0,0.00018697,2]
[400293652,1767294632935,-500.0,0.00018697,2]
[400293653,1767294632944,-500.0,0.00018697,2]
[400293654,1767294632954,-500.0,0.00018697,2]
[400293655,1767294632963,-642.95580554,0.00018697,2]
[400293656,1767294632972,-500.0,0.00018697,2]
[400293657,1767294632982,-500.0,0.00018697,2]
[400293658,1767294632991,-500.0,0.00018697,2]
[400293659,1767294633000,-500.0,0.00018697,2]
[400293660,1767294633009,-300.0,0.00018697,2]
[400293661,1767294633018,-500.0,0.00018697,2]
[400293662,1767294633027,-500.0,0.00018697,2]
[400293663,1767294633037,-500.0,0.00018697,2]
[400293664,1767294633046,-174.889,0.00018697,2]
[400293665,1767294633055,-898.19750526,0.00018698,3]
[400293687,1767294640438,-458.9508,0.00018413,2]
[400293688,1767294640492,-1562.37473266,0.00018413,2]
[400293689,1767294640502,-12474.57438872,0.00018698,3]
[400293694,1767294644459,-2439.32849533,0.00018698,3]
[400293695,1767294644470,-53868.2655262,0.00018698,3]
[400293696,1767294644478,-500.0,0.00018699,2]
[400293697,1767294644487,-1053.66473034,0.000187,3]
[400293698,1767294645143,-1440.55086211,0.000187,3]
[400293699,1767294645155,-1336.3502,0.000187,3]
[400293703,1767294646352,-10105.49420755,0.000187,3]
[400293704,1767294646361,-500.0,0.00018877,2]
[400293705,1767294646371,-13936.06,0.00018878,3]
[400293706,1767294646380,-866.62,0.0001889,3]
[400293707,1767294646390,-500.0,0.00018899,2]
[400293708,1767294646400,-151.49639709,0.00018899,2]
[400293709,1767294646409,-24907.50343562,0.000189,2]
[400293710,1767294646419,-244.28112016,0.000189,2]
[400293711,1767294646428,-500.0,0.000189,2]
[400293712,1767294646438,-500.0,0.000189,2]
[400293713,1767294646449,-500.0,0.000189,2]
[400293714,1767294646459,-500.0,0.000189,5]
[400293715,1767294646476,-500.0,0.000189,2]
[400293716,1767294646487,-500.0,0.000189,5]
[400293717,1767294646497,-603.09510429,0.000189,2]
[400293718,1767294646508,-1208.82094463,0.000189,2]
[400293719,1767294646518,-302.90913937,0.000189,2]
[400293720,1767294646528,-168.0,0.00018913,2]
[400293721,1767294646538,-186.4480399,0.0001894,7]
[400293722,1767294646548,-745.7921596,0.00018973,7]
[400293723,1767294646557,-7966.20547939,0.00018996,2]
[400293724,1767294646566,-126324.62588932,0.00018998,2]
[400293725,1767294646577,-3854.12741463,0.00018998,2]
[400293726,1767294646589,-2265.9225486,0.00018998,2]
[400293727,1767295510045,202.72092054,0.00023433,120]
[400293728,1767295650122,-446.58189228,9.9e-05,2]
[400293772,1767295832350,-159.16990845,9.95e-05,2]
[400293774,1767295832359,-211.61497475,9.95e-05,2]
[400293817,1767295838446,-347.38502525,9.95e-05,2]
[400293819,1767295838456,-171.06,0.0001,2]
[400293821,1767295838465,-187.82049197,0.0001195,2]
[400293822,1767295838474,-171.06,0.000138,2]
[400293823,1767295838484,-216.47107549,0.0001395,2]
[400293824,1767295838494,-2157.0,0.00015789,2]
[400293825,1767295838503,-245.12165901,0.0001595,2]
[400293826,1767295838513,-1041.66666667,0.00017321,2]
[400293827,1767295838523,-1000.0,0.00017331,2]
[400293828,1767295838533,-171.06,0.000175,2]
[400293829,1767295838543,-1200.0,0.00017786,2]
[400293830,1767295838552,-300.0,0.00017787,2]
[400293831,1767295838561,-300.0,0.00017787,2]
[400293832,1767295838571,-300.0,0.00017787,2]
[400293833,1767295838584,-300.0,0.00017787,2]
[400293834,1767295838593,-300.0,0.00017787,2]
[400293835,1767295838602,-300.0,0.00017787,2]
[400293836,1767295838611,-300.0,0.00017787,2]
[400293838,1767295838620,-300.0,0.00017787,2]
[400293839,1767295838630,-300.0,0.00017787,2]
[400293840,1767295838639,-300.0,0.00017787,2]
[400293841,1767295838648,-300.0,0.00017787,2]
[400293842,1767295838657,-300.0,0.00017787,2]
[400293843,1767295838667,-300.0,0.00017787,2]
[400293844,1767295838677,-300.0,0.00017787,2]
[400293845,1767295838686,-300.0,0.00017787,2]
[400293846,1767295838695,-273.77224253,0.0001795,2]
[400293847,1767295838704,-418.82956551,0.00018597,2]
[400293848,1767295838714,-162.8540801,0.00018618,2]
[400293849,1767295838723,-707.50372284,0.00018695,2]
[400293850,1767295838732,-174.889,0.00018695,2]
[400293851,1767295838742,-1272.23319441,0.00018695,2]
[400293852,1767295838752,-224.95711344,0.00018695,2]
[400293853,1767295838761,-234.18583018,0.00018695,2]
[400293854,1767295838770,-578.15487431,0.00018697,2]
[400293855,1767295838780,-500.0,0.00018697,2]
[400293856,1767295838789,-250.54000002,0.00018697,2]
[400293857,1767295838799,-500.0,0.00018697,2]
[400293858,1767295838808,-500.0,0.00018697,2]
[400293859,1767295838817,-500.0,0.00018697,2]
[400293860,1767295838827,-12.28198913,0.00018697,2]
[400293861,1767295838839,-487.71801087,0.00018697,2]
[400293862,1767295838848,-500.0,0.00018697,2]
[400293863,1767295838857,-500.0,0.00018697,2]
[400293864,1767295838867,-500.0,0.00018697,2]
[400293865,1767295838876,-43.9691443,0.00018697,2]
[400293866,1767295838887,-456.0308557,0.00018697,2]
[400293867,1767295838897,-500.0,0.00018697,2]
[400293868,1767295838906,-500.0,0.00018697,2]
[400293869,1767295838915,-500.0,0.00018697,2]
[400293870,1767295838924,-500.0,0.00018697,2]
[400293871,1767295838933,-500.0,0.00018697,2]
[400293872,1767295838942,-500.0,0.00018697,2]
[400293873,1767295838951,-339.05527893,0.00018697,2]
[400293874,1767295838962,-160.94472107,0.00018697,2]
[400293875,1767295838972,-500.0,0.00018697,2]
[400293876,1767295838981,-111.09777482,0.00018697,2]
[400293877,1767295838992,-388.90222518,0.00018697,2]
[400293878,1767295839002,-500.0,0.00018697,2]
[400293879,1767295839011,-134.83348131,0.00018697,2]
[400293880,1767295839022,-365.16651869,0.00018697,2]
[400293881,1767295839031,-161.64209152,0.00018697,2]
[400293882,1767295839043,-338.35790848,0.00018697,2]
[400293883,1767295839053,-233.17409067,0.00018697,2]
[400293884,1767295839062,-500.0,0.00018697,2]
[400293885,1767295839072,-500.0,0.00018697,2]
[400293886,1767295839081,-500.0,0.00018697,2]
[400293887,1767295839091,-313.45905199,0.00018697,2]
[400293888,1767295839100,-186.66018705,0.00018697,2]
[400293889,1767295839111,-313.33981295,0.00018697,2]
[400293890,1767295839119,-42.47486364,0.00018697,2]
[400293891,1767295839131,-457.52513636,0.00018697,2]
[400293892,1767295839140,-500.0,0.00018697,2]
[400293893,1767295839149,-569.01954491,0.00018697,2]
[400293894,1767295839158,-450.71843783,0.00018697,2]
[400293895,1767295839167,-15691.98025654,0.00018698,3]
[400293896,1767295839176,-7845.99,0.000187,3]
[400293897,1767295839185,-2157.0,0.00018789,2]
[400293898,1767295839195,-216.11806731,0.00018859,2]
[400293899,1767295839203,-247.2460964,0.00018877,2]
[400293900,1767295839212,-500.0,0.00018877,2]
[400293901,1767295839221,-500.0,0.00018877,2]
[400293902,1767295839230,-500.0,0.00018877,2]
[400293903,1767295839239,-361.21883608,0.00018877,2]
[400293904,1767295839248,-500.0,0.00018877,2]
[400293905,1767295839258,-500.0,0.00018877,2]
[400293906,1767295839268,-500.0,0.00018877,2]
[400293907,1767295839276,-500.0,0.00018877,2]
[400293908,1767295839285,-500.0,0.00018877,2]
[400293909,1767295839294,-500.0,0.00018877,2]
[400293910,1767295839303,-500.0,0.00018877,2]
[400293911,1767295839312,-383.98239465,0.00018877,2]
[400293912,1767295839321,-500.0,0.00018877,2]
[400293913,1767295839330,-500.0,0.00018877,2]
[400293914,1767295839339,-500.0,0.00018877,2]
[400293915,1767295839348,-500.0,0.00018877,2]
[400293916,1767295839358,-500.0,0.00018877,2]
[400293917,1767295839367,-500.0,0.00018877,2]
[400293918,1767295839376,-500.0,0.00018877,2]
[400293919,1767295839385,-500.0,0.00018877,2]
[400293920,1767295839394,-500.0,0.00018877,2]
[400293921,1767295839403,-148.437863,0.00018877,2]
[400293939,1767295846694,-351.562137,0.00018877,2]
[400293940,1767295846704,-445.0,0.00018877,2]
[400293941,1767295846713,-9458.28653923,0.00018878,3]
[400294001,1767297032463,-560.0,0.0001,2]
[400294003,1767297032473,-170.98,0.0001,2]
[400294005,1767297032483,-150.0,0.00010296,2]
[400294007,1767297032492,-150.0,0.00010975,2]
[400294008,1767297032501,-94.99591378,0.00012296,2]
[400294009,1767297032513,-82.00408622,0.00012296,2]
[400294011,1767297032522,-1037.124457,0.00013699,2]
[400294013,1767297032531,-204.0,0.00014296,2]
[400294015,1767297032540,-1365.2142283,0.00015616,2]
[400294016,1767297032549,-181.824521,0.00015866,2]
[400294017,1767297032558,-337.2181302,0.00015929,2]
[400294018,1767297032567,-300.0,0.00015929,2]
[400294019,1767297032576,-1200.0,0.00016246,2]
[400294020,1767297032585,-300.0,0.00016247,2]
[400294021,1767297032594,-300.0,0.00016247,2]
[400294022,1767297032603,-300.0,0.00016247,2]
[400294024,1767297032612,-300.0,0.00016247,2]
[400294026,1767297032622,-300.0,0.00016247,2]
[400294028,1767297032631,-300.0,0.00016247,2]
[400294030,1767297032640,-300.0,0.00016247,2]
[400294031,1767297032649,-300.0,0.00016247,2]
[400294032,1767297032658,-300.0,0.00016247,2]
[400294033,1767297032668,-300.0,0.00016247,2]
[400294035,1767297032677,-300.0,0.00016247,2]
[400294036,1767297032686,-300.0,0.00016247,2]
[400294038,1767297032695,-300.0,0.00016247,2]
[400294040,1767297032703,-300.0,0.00016247,2]
[400294042,1767297032712,-300.0,0.00016247,2]
[400294044,1767297032721,-600.0,0.00016247,2]
[400294046,1767297032730,-231.0,0.00016296,2]
[400294048,1767297032739,-9673.13856344,0.00016853,2]
[400294051,1767297032754,-427.395,0.00016853,2]
[400294053,1767297032764,-280.32,0.00016853,2]
[400294055,1767297032775,-1272.78874796,0.00016853,2]
[400294057,1767297032784,-500.0,0.00017188,2]
[400294059,1767297032793,-405.10341377,0.00017847,2]
[400294063,1767297032804,-1274.89658623,0.00017847,2]
[400294064,1767297032813,-720.0,0.00017872,2]
[400294068,1767297032822,-258.0,0.00018296,2]
[400294070,1767297032831,-4400.97054695,0.00018557,2]
[400294073,1767297032839,-693.81479484,0.00018657,2]
[400294218,1767297038667,-269.83796525,0.00016203,2]
[400294336,1767297045668,-146.16203475,0.00016203,2]
[400294337,1767297045677,-1041.66666667,0.00018654,2]
[400294338,1767297045688,-162.85408011,0.00018697,2]
[400294339,1767297045697,-174.889,0.00018697,2]
[400294340,1767297045706,-171.39904368,0.00018697,2]
[400294346,1767297046816,-196.76307321,0.00018697,2]
[400294347,1767297046826,-438.96871532,0.00018697,2]
[400294348,1767297046835,-452.11328277,0.00018697,2]
[400294349,1767297046844,-248.13045452,0.00018697,2]
[400294350,1767297046854,-1040.67877376,0.00018698,2]
[400294351,1767297046863,-1848.24550219,0.00018698,2]
[400294352,1767297046872,-936.74332071,0.00018698,2]
[400294353,1767297046881,-2105.56479912,0.00018698,2]
[400294354,1767297046890,-9396.75346077,0.00018698,3]
[400294355,1767297046899,-3132.23,0.000187,3]
[400294356,1767297046909,-165.9092991,0.00018772,2]
[400294357,1767297046919,-500.0,0.00018877,2]
[400294358,1767297046928,-500.0,0.00018877,2]
[400294359,1767297046938,-820.59243328,0.00018877,2]
[400294360,1767297046947,-179.80091143,0.00018877,2]
[400294361,1767297046956,-5008.99461974,0.00018878,3]
[400294386,1767297430734,185.89452573,0.00023533,120]
[400294407,1767298053151,-371.98110071,0.0001,2]
[400294444,1767298231687,-560.0,0.0001,2]
[400294446,1767298231698,-150.0,0.00010025,2]
[400294448,1767298231707,-177.0,0.00012025,2]
[400294450,1767298231717,-300.0,0.00012364,2]
[400294452,1767298231726,-1200.0,0.00012364,2]
[400294454,1767298231736,-971.01735493,0.00012949,2]
[400294457,1767298231745,-47230.95686343,0.00012953,2]
[400294460,1767298231754,-300.0,0.00012953,2]
[400294463,1767298231763,-300.0,0.00012953,2]
[400294466,1767298231773,-300.0,0.00012953,2]
[400294469,1767298231782,-300.0,0.00012953,2]
[400294472,1767298231791,-300.0,0.00012953,2]
[400294474,1767298231801,-300.0,0.00012953,2]
[400294476,1767298231810,-300.0,0.00012953,2]
[400294478,1767298231819,-300.0,0.00012953,2]
[400294480,1767298231828,-300.0,0.00012953,2]
[400294482,1767298231837,-300.0,0.00012953,2]
[400294484,1767298231847,-300.0,0.00012953,2]
[400294486,1767298231856,-300.0,0.00012953,2]
[400294488,1767298231866,-300.0,0.00012953,2]
[400294490,1767298231875,-300.0,0.00012953,2]
[400294492,1767298231884,-300.0,0.00012953,2]
[400294494,1767298231893,-600.0,0.00012953,2]
[400294496,1767298231902,-420.0,0.00013568,2]
[400294498,1767298231911,-1680.0,0.000136,2]
[400294500,1767298231920,-500.0,0.00013696,2]
[400294501,1767298231929,-500.0,0.00013698,2]
[400294503,1767298231938,-399.44,0.00013698,2]
[400294505,1767298231948,-500.0,0.00013698,2]
[400294507,1767298231957,-500.0,0.00013698,2]
[400294509,1767298231966,-500.0,0.00013698,2]
[400294511,1767298231976,-1000.0,0.00013699,2]
[400294513,1767298231985,-204.0,0.00014025,2]
[400294515,1767298231994,-720.0,0.00014248,2]
[400294517,1767298232003,-587.0,0.00014889,2]
[400294519,1767298232013,-2351.0,0.0001496,2]
[400294521,1767298232022,-500.0,0.00015281,2]
[400294523,1767298232031,-239.87855036,0.00015532,2]
[400294525,1767298232040,-864.0,0.00015673,2]
[400294527,1767298232050,-231.0,0.00016025,2]
[400294529,1767298232059,-576.313,0.00016203,2]
[400294531,1767298232068,-823.0,0.00016339,2]
[400294533,1767298232077,-276.71291062,0.00016404,2]
[400294535,1767298232087,-3292.0,0.00016456,2]
[400294537,1767298232097,-1041.66666667,0.00016747,2]
[400294539,1767298232107,-326.48745843,0.00017119,2]
[400294541,1767298232116,-1305.94983374,0.00017119,2]
[400294543,1767298232125,-1000.0,0.0001724,2]
[400294545,1767298232135,-688.17617739,0.000178,3]
[400294547,1767298232144,-308.57427035,0.0001802,2]
[400294549,1767298232153,-1234.2970814,0.0001802,2]
[400294551,1767298232163,-258.0,0.00018025,2]
[400294553,1767298232172,-2030.07152654,0.00018102,2]
[400294555,1767298232184,-437.315,0.00018102,2]
[400294620,1767299234129,-439.12181312,9.9e-05,2]
[400294711,1767299437981,-150.0,9.95e-05,2]
[400294712,1767299437991,-170.87,0.0001,2]
[400294713,1767299438000,-177.0,0.0001195,2]
[400294714,1767299438009,-1009.475808,0.00013699,2]
[400294715,1767299438018,-204.0,0.0001395,2]
[400294716,1767299438027,-1200.0,0.00013967,2]
[400294717,1767299438036,-300.0,0.00013968,2]
[400294718,1767299438046,-300.0,0.00013968,2]
[400294719,1767299438055,-300.0,0.00013968,2]
[400294720,1767299438064,-300.0,0.00013968,2]
[400294721,1767299438073,-300.0,0.00013968,2]
[400294722,1767299438083,-300.0,0.00013968,2]
[400294723,1767299438092,-300.0,0.00013968,2]
[400294724,1767299438101,-300.0,0.00013968,2]
[400294725,1767299438111,-300.0,0.00013968,2]
[400294726,1767299438120,-300.0,0.00013968,2]
[400294727,1767299438129,-300.0,0.00013968,2]
[400294728,1767299438138,-300.0,0.00013968,2]
[400294729,1767299438147,-300.0,0.00013968,2]
[400294730,1767299438157,-300.0,0.00013968,2]
[400294731,1767299438166,-300.0,0.00013968,2]
[400294732,1767299438175,-600.0,0.00013968,2]
[400294733,1767299438184,-1680.0,0.00015364,2]
[400294734,1767299438193,-210.80703615,0.00015365,2]
[400294735,1767299438204,-509.19296385,0.00015365,2]
[400294736,1767299438213,-231.0,0.0001595,2]
[400294737,1767299438223,-1041.66666667,0.00016559,2]
[400294738,1767299438232,-2351.0,0.000169,2]
[400294739,1767299438241,-864.0,0.00016901,2]
[400294740,1767299438250,-258.0,0.0001795,2]
[400294741,1767299438259,-27886.87992935,0.00018,2]
[400294742,1767299438268,-3850.84922852,0.0001849,2]
[400294743,1767299438278,-3292.0,0.0001859,2]
[400294744,1767299438287,-1000.0,0.00018591,2]
[400294745,1767299438301,-162.85408011,0.00018618,2]
[400294746,1767299438311,-1179.67,0.00018698,3]
[400294747,1767299438320,-589.81,0.000187,3]
[400294748,1767299438329,-150.0,0.00018723,2]
[400294749,1767299438339,-151.0,0.00018813,2]
[400294750,1767299438348,-2359.24,0.00018878,3]
[400294751,1767299438358,-168.0,0.00018958,2]
[400294752,1767299438367,-428.71,0.00018988,3]
[400294753,1767299438376,-500.0,0.00018996,2]
[400294754,1767299438386,-500.0,0.00018996,2]
[400294755,1767299438512,-500.0,0.00018996,2]
[400294756,1767299438522,-500.0,0.00018996,2]
[400294757,1767299438532,-287.49537148,0.00018996,2]
[400294758,1767299438541,-365.51192636,0.00018996,2]
[400294759,1767299438551,-500.0,0.00018996,2]
[400294760,1767299438560,-500.0,0.00018996,2]
[400294761,1767299438569,-500.0,0.00018996,2]
[400294762,1767299438578,-500.0,0.00018996,2]
[400294763,1767299438588,-77.45188641,0.00018996,2]
[400294764,1767299438599,-320.4597176,0.00018996,2]
[400294786,1767299528408,176.73057378,0.00023433,120]
[400294802,1767300268625,886.24224392,0.00012,10]
[400294853,1767300632251,-150.0,0.000101,2]
[400294855,1767300632261,-177.0,0.000121,2]
[400294857,1767300632271,-156.5208832,0.00012611,2]
[400294859,1767300632304,-143.4791168,0.00012611,2]
[400294860,1767300632315,-300.0,0.00012611,2]
[400294861,1767300632327,-1200.0,0.00012611,2]
[400294863,1767300632337,-300.0,0.00012612,2]
[400294865,1767300632347,-300.0,0.00012612,2]
[400294867,1767300632357,-300.0,0.00012612,2]
[400294869,1767300632369,-300.0,0.00012612,2]
[400294871,1767300632379,-300.0,0.00012612,2]
[400294872,1767300632390,-300.0,0.00012612,2]
[400294873,1767300632401,-300.0,0.00012612,2]
[400294874,1767300632411,-300.0,0.00012612,2]
[400294875,1767300632421,-300.0,0.00012612,2]
[400294876,1767300632432,-300.0,0.00012612,2]
[400294877,1767300632442,-300.0,0.00012612,2]
[400294878,1767300632452,-300.0,0.00012612,2]
[400294879,1767300632463,-300.0,0.00012612,2]
[400294880,1767300632476,-300.0,0.00012612,2]
[400294881,1767300632486,-300.0,0.00012612,2]
[400294882,1767300632496,-3771.49678033,0.00012612,2]
[400294899,1767300638154,-170.87,0.0001,2]
[400294900,1767300638164,-3698.65190026,0.00012612,2]
[400294901,1767300638208,-9140.68039982,0.00012612,2]
[400294920,1767300646302,-1499.94601582,0.00012612,2]
[400294933,1767301638130,-378.69517195,0.0001,2]
[400294953,1767301832167,-421.14389102,0.0001,2]
[400294959,1767301832223,-138.85610898,0.0001,2]
[400294961,1767301832233,-193.79,0.0001,2]